Workbook

Sheet Dashboard
G2: Return | L2: Risk
B3: S&P 500 Index | G3: 1-Yr Return | H3: 3-Yr Return | I3: 5-Yr Return | J3: 10-Yr Return | L3: 3 Yr Beta | M3: 3 Yr Standard Deviation | N3: 5 Yr Beta | O3: 5 Yr Standard Deviation | P3: 10 Yr Beta | Q3: 10 Yr Standard Deviation
C4: S&P 500 Index | G4: 0.2257 | H4: 0.0219 | I4: 0.0287 | J4: 0 | L4: 1 | M4: 21.84 | N4: 1 | O4: 17.83 | P4: 1 | Q4: N/A
B6: Total Investment Holding: | D6: 100000
B8: Portfolio Information | G8: Return | L8: Risk | S8: Cost
B9: Ticker | C9: Fund Name | D9: Category | E9: Investment | F9: Allocation % | G9: Load Adj 1-Yr Return | H9: Load Adj 3-Yr Return | I9: Load Adj 5-Yr Return | J9: Load Adj 10-Yr Return | L9: 3 Yr Beta | M9: 3 Yr Standard Deviation | N9: 5 Yr Beta | O9: 5 Yr Standard Deviation | P9: 10 Yr Beta | Q9: 10 Yr Standard Deviation | S9: 3 Yr Exp Proj / $10,000 | T9: 5 Yr Exp Proj / $10,000 | U9: 10 Yr Exp Proj / $10,000
B10: AGTHX | C10: =VLOOKUP(B10,List!B:BG,2,FALSE) -> American Funds Growth Fund of Amer A | D10: =VLOOKUP(B10,List!B:BG,3,FALSE) -> Large Growth | E10: =$D$6*F10 -> 0 | F10: 0 | G10: =VLOOKUP(B10,List!B:BG,23,FALSE) -> 0.0696 | H10: =VLOOKUP(B10,List!B:BG,24,FALSE) -> -0.003 | I10: =VLOOKUP(B10,List!B:BG,25,FALSE) -> 0.0149 | J10: =VLOOKUP(B10,List!B:BG,26,FALSE) -> 0.0428 | L10: =VLOOKUP(B10,List!B:BG,39,FALSE) -> 0.96 | M10: =VLOOKUP(B10,List!B:BG,42,FALSE) -> 21.58 | N10: =VLOOKUP(B10,List!B:BG,46,FALSE) -> 0.96 | O10: =VLOOKUP(B10,List!B:BG,49,FALSE) -> 17.6 | P10: =VLOOKUP(B10,List!B:BG,53,FALSE) -> 1.01 | Q10: =VLOOKUP(B10,List!B:BG,56,FALSE) -> 16.77 | S10: =VLOOKUP(B10,List!B:BG,15,FALSE) -> 783 | T10: =VLOOKUP(B10,List!B:BG,16,FALSE) -> 937 | U10: =VLOOKUP(B10,List!B:BG,17,FALSE) -> 1384
B11: AMAGX | C11: =VLOOKUP(B11,List!B:BG,2,FALSE) -> Amana Trust Growth | D11: =VLOOKUP(B11,List!B:BG,3,FALSE) -> Large Growth | E11: 10000 | F11: 0.1 | G11: =VLOOKUP(B11,List!B:BG,23,FALSE) -> 0.207 | H11: =VLOOKUP(B11,List!B:BG,24,FALSE) -> 0.0617 | I11: =VLOOKUP(B11,List!B:BG,25,FALSE) -> 0.0678 | J11: =VLOOKUP(B11,List!B:BG,26,FALSE) -> 0.0755 | L11: =VLOOKUP(B11,List!B:BG,39,FALSE) -> 0.77 | M11: =VLOOKUP(B11,List!B:BG,42,FALSE) -> 17.96 | N11: =VLOOKUP(B11,List!B:BG,46,FALSE) -> 0.79 | O11: =VLOOKUP(B11,List!B:BG,49,FALSE) -> 15.16 | P11: =VLOOKUP(B11,List!B:BG,53,FALSE) -> 0.91 | Q11: =VLOOKUP(B11,List!B:BG,56,FALSE) -> 15.95 | S11: =VLOOKUP(B11,List!B:BG,15,FALSE) -> 384 | T11: =VLOOKUP(B11,List!B:BG,16,FALSE) -> 665 | U11: =VLOOKUP(B11,List!B:BG,17,FALSE) -> 1466
B12: BERIX | C12: =VLOOKUP(B12,List!B:BG,2,FALSE) -> Berwyn Income | D12: =VLOOKUP(B12,List!B:BG,3,FALSE) -> Conservative Allocation | E12: 10000 | F12: 0.1 | G12: =VLOOKUP(B12,List!B:BG,23,FALSE) -> 0.1084 | H12: =VLOOKUP(B12,List!B:BG,24,FALSE) -> 0.101 | I12: =VLOOKUP(B12,List!B:BG,25,FALSE) -> 0.0835 | J12: =VLOOKUP(B12,List!B:BG,26,FALSE) -> 0.0893 | L12: =VLOOKUP(B12,List!B:BG,39,FALSE) -> 0.57 | M12: =VLOOKUP(B12,List!B:BG,42,FALSE) -> 9.04 | N12: =VLOOKUP(B12,List!B:BG,46,FALSE) -> 0.56 | O12: =VLOOKUP(B12,List!B:BG,49,FALSE) -> 7.26 | P12: =VLOOKUP(B12,List!B:BG,53,FALSE) -> 0.5 | Q12: =VLOOKUP(B12,List!B:BG,56,FALSE) -> 6.22 | S12: =VLOOKUP(B12,List!B:BG,15,FALSE) -> 230 | T12: =VLOOKUP(B12,List!B:BG,16,FALSE) -> 401 | U12: =VLOOKUP(B12,List!B:BG,17,FALSE) -> 894
B13: CGMRX | C13: =VLOOKUP(B13,List!B:BG,2,FALSE) -> CGM Realty | D13: =VLOOKUP(B13,List!B:BG,3,FALSE) -> Real Estate | E13: 10000 | F13: 0.1 | G13: =VLOOKUP(B13,List!B:BG,23,FALSE) -> 0.3783 | H13: =VLOOKUP(B13,List!B:BG,24,FALSE) -> 0.0081 | I13: =VLOOKUP(B13,List!B:BG,25,FALSE) -> 0.095 | J13: =VLOOKUP(B13,List!B:BG,26,FALSE) -> 0.2029 | L13: =VLOOKUP(B13,List!B:BG,39,FALSE) -> 1.55 | M13: =VLOOKUP(B13,List!B:BG,42,FALSE) -> 40.24 | N13: =VLOOKUP(B13,List!B:BG,46,FALSE) -> 1.53 | O13: =VLOOKUP(B13,List!B:BG,49,FALSE) -> 33.03 | P13: =VLOOKUP(B13,List!B:BG,53,FALSE) -> 1.18 | Q13: =VLOOKUP(B13,List!B:BG,56,FALSE) -> 27.44 | S13: =VLOOKUP(B13,List!B:BG,15,FALSE) -> 296 | T13: =VLOOKUP(B13,List!B:BG,16,FALSE) -> 515 | U13: =VLOOKUP(B13,List!B:BG,17,FALSE) -> 1143
B14: CRMMX | C14: =VLOOKUP(B14,List!B:BG,2,FALSE) -> CRM Mid Cap Value Inv | D14: =VLOOKUP(B14,List!B:BG,3,FALSE) -> Mid-Cap Blend | E14: 10000 | F14: 0.1 | G14: =VLOOKUP(B14,List!B:BG,23,FALSE) -> 0.2686 | H14: =VLOOKUP(B14,List!B:BG,24,FALSE) -> 0.0428 | I14: =VLOOKUP(B14,List!B:BG,25,FALSE) -> 0.052 | J14: =VLOOKUP(B14,List!B:BG,26,FALSE) -> 0.0967 | L14: =VLOOKUP(B14,List!B:BG,39,FALSE) -> 0.98 | M14: =VLOOKUP(B14,List!B:BG,42,FALSE) -> 22.01 | N14: =VLOOKUP(B14,List!B:BG,46,FALSE) -> 0.97 | O14: =VLOOKUP(B14,List!B:BG,49,FALSE) -> 17.98 | P14: =VLOOKUP(B14,List!B:BG,53,FALSE) -> 0.91 | Q14: =VLOOKUP(B14,List!B:BG,56,FALSE) -> 16.17 | S14: =VLOOKUP(B14,List!B:BG,15,FALSE) -> 331 | T14: =VLOOKUP(B14,List!B:BG,16,FALSE) -> 574 | U14: =VLOOKUP(B14,List!B:BG,17,FALSE) -> 1271
B15: CVGRX | C15: =VLOOKUP(B15,List!B:BG,2,FALSE) -> Calamos Growth A | D15: =VLOOKUP(B15,List!B:BG,3,FALSE) -> Large Growth | E15: 0 | F15: 0 | G15: =VLOOKUP(B15,List!B:BG,23,FALSE) -> 0.241 | H15: =VLOOKUP(B15,List!B:BG,24,FALSE) -> 0.0175 | I15: =VLOOKUP(B15,List!B:BG,25,FALSE) -> 0.0183 | J15: =VLOOKUP(B15,List!B:BG,26,FALSE) -> 0.0554 | L15: =VLOOKUP(B15,List!B:BG,39,FALSE) -> 1.13 | M15: =VLOOKUP(B15,List!B:BG,42,FALSE) -> 26.56 | N15: =VLOOKUP(B15,List!B:BG,46,FALSE) -> 1.16 | O15: =VLOOKUP(B15,List!B:BG,49,FALSE) -> 22.57 | P15: =VLOOKUP(B15,List!B:BG,53,FALSE) -> 1.03 | Q15: =VLOOKUP(B15,List!B:BG,56,FALSE) -> 19.27 | S15: =VLOOKUP(B15,List!B:BG,15,FALSE) -> 862 | T15: =VLOOKUP(B15,List!B:BG,16,FALSE) -> 1145 | U15: =VLOOKUP(B15,List!B:BG,17,FALSE) -> 1947
B16: DHSCX | C16: =VLOOKUP(B16,List!B:BG,2,FALSE) -> Diamond Hill Small Cap A | D16: =VLOOKUP(B16,List!B:BG,3,FALSE) -> Small Value | E16: 0 | F16: 0 | G16: =VLOOKUP(B16,List!B:BG,23,FALSE) -> 0.1833 | H16: =VLOOKUP(B16,List!B:BG,24,FALSE) -> 0.0531 | I16: =VLOOKUP(B16,List!B:BG,25,FALSE) -> 0.0255 | J16: =VLOOKUP(B16,List!B:BG,26,FALSE) -> 0.1012 | L16: =VLOOKUP(B16,List!B:BG,39,FALSE) -> 1.02 | M16: =VLOOKUP(B16,List!B:BG,42,FALSE) -> 23.74 | N16: =VLOOKUP(B16,List!B:BG,46,FALSE) -> 1 | O16: =VLOOKUP(B16,List!B:BG,49,FALSE) -> 19.52 | P16: =VLOOKUP(B16,List!B:BG,53,FALSE) -> 1.02 | Q16: =VLOOKUP(B16,List!B:BG,56,FALSE) -> 19.1 | S16: =VLOOKUP(B16,List!B:BG,15,FALSE) -> 906 | T16: =VLOOKUP(B16,List!B:BG,16,FALSE) -> 1202 | U16: =VLOOKUP(B16,List!B:BG,17,FALSE) -> 2043
B17: EANAX | C17: =VLOOKUP(B17,List!B:BG,2,FALSE) -> Eaton Vance National Municipal Income A | D17: =VLOOKUP(B17,List!B:BG,3,FALSE) -> Muni National Long | E17: 0 | F17: 0 | G17: =VLOOKUP(B17,List!B:BG,23,FALSE) -> -0.0953 | H17: =VLOOKUP(B17,List!B:BG,24,FALSE) -> -0.0118 | I17: =VLOOKUP(B17,List!B:BG,25,FALSE) -> -0.0136 | J17: =VLOOKUP(B17,List!B:BG,26,FALSE) -> 0.031 | L17: =VLOOKUP(B17,List!B:BG,39,FALSE) -> 2.4 | M17: =VLOOKUP(B17,List!B:BG,42,FALSE) -> 16.34 | N17: =VLOOKUP(B17,List!B:BG,46,FALSE) -> 2.23 | O17: =VLOOKUP(B17,List!B:BG,49,FALSE) -> 13.94 | P17: =VLOOKUP(B17,List!B:BG,53,FALSE) -> 1.76 | Q17: =VLOOKUP(B17,List!B:BG,56,FALSE) -> 10.5 | S17: =VLOOKUP(B17,List!B:BG,15,FALSE) -> 718 | T17: =VLOOKUP(B17,List!B:BG,16,FALSE) -> 898 | U17: =VLOOKUP(B17,List!B:BG,17,FALSE) -> 1418
B18: ETGIX | C18: =VLOOKUP(B18,List!B:BG,2,FALSE) -> Eaton Vance Greater India A | D18: =VLOOKUP(B18,List!B:BG,3,FALSE) -> Pacific/Asia ex-Japan Stk | E18: -3.371145955e-11 | F18: -3.371145955e-16 | G18: =VLOOKUP(B18,List!B:BG,23,FALSE) -> 0.0319 | H18: =VLOOKUP(B18,List!B:BG,24,FALSE) -> -0.0003 | I18: =VLOOKUP(B18,List!B:BG,25,FALSE) -> 0.0395 | J18: =VLOOKUP(B18,List!B:BG,26,FALSE) -> 0.1744 | L18: =VLOOKUP(B18,List!B:BG,39,FALSE) -> 1.27 | M18: =VLOOKUP(B18,List!B:BG,42,FALSE) -> 41.36 | N18: =VLOOKUP(B18,List!B:BG,46,FALSE) -> 1.33 | O18: =VLOOKUP(B18,List!B:BG,49,FALSE) -> 36.23 | P18: =VLOOKUP(B18,List!B:BG,53,FALSE) -> 1.22 | Q18: =VLOOKUP(B18,List!B:BG,56,FALSE) -> 30.89 | S18: =VLOOKUP(B18,List!B:BG,15,FALSE) -> 1233 | T18: =VLOOKUP(B18,List!B:BG,16,FALSE) -> 1712 | U18: =VLOOKUP(B18,List!B:BG,17,FALSE) -> 3029
B19: ETHYX | C19: =VLOOKUP(B19,List!B:BG,2,FALSE) -> Eaton Vance High-Yield Municipal Inc A | D19: =VLOOKUP(B19,List!B:BG,3,FALSE) -> High Yield Muni | E19: 0 | F19: 0 | G19: =VLOOKUP(B19,List!B:BG,23,FALSE) -> -0.0608 | H19: =VLOOKUP(B19,List!B:BG,24,FALSE) -> -0.0223 | I19: =VLOOKUP(B19,List!B:BG,25,FALSE) -> -0.0206 | J19: =VLOOKUP(B19,List!B:BG,26,FALSE) -> 0.0258 | L19: =VLOOKUP(B19,List!B:BG,39,FALSE) -> 2.11 | M19: =VLOOKUP(B19,List!B:BG,42,FALSE) -> 17.19 | N19: =VLOOKUP(B19,List!B:BG,46,FALSE) -> 1.89 | O19: =VLOOKUP(B19,List!B:BG,49,FALSE) -> 14.05 | P19: =VLOOKUP(B19,List!B:BG,53,FALSE) -> 1.39 | Q19: =VLOOKUP(B19,List!B:BG,56,FALSE) -> 10.29 | S19: =VLOOKUP(B19,List!B:BG,15,FALSE) -> 811 | T19: =VLOOKUP(B19,List!B:BG,16,FALSE) -> 1058 | U19: =VLOOKUP(B19,List!B:BG,17,FALSE) -> 1762
B20: EUEYX | C20: =VLOOKUP(B20,List!B:BG,2,FALSE) -> Alpine Cyclical Advantage Property Y | D20: =VLOOKUP(B20,List!B:BG,3,FALSE) -> Real Estate | E20: 0 | F20: 0 | G20: =VLOOKUP(B20,List!B:BG,23,FALSE) -> 0.1674 | H20: =VLOOKUP(B20,List!B:BG,24,FALSE) -> -0.0692 | I20: =VLOOKUP(B20,List!B:BG,25,FALSE) -> -0.0978 | J20: =VLOOKUP(B20,List!B:BG,26,FALSE) -> 0.0691 | L20: =VLOOKUP(B20,List!B:BG,39,FALSE) -> 1.76 | M20: =VLOOKUP(B20,List!B:BG,42,FALSE) -> 44.3 | N20: =VLOOKUP(B20,List!B:BG,46,FALSE) -> 1.7 | O20: =VLOOKUP(B20,List!B:BG,49,FALSE) -> 35.75 | P20: =VLOOKUP(B20,List!B:BG,53,FALSE) -> 1.38 | Q20: =VLOOKUP(B20,List!B:BG,56,FALSE) -> 29.87 | S20: =VLOOKUP(B20,List!B:BG,15,FALSE) -> 418 | T20: =VLOOKUP(B20,List!B:BG,16,FALSE) -> 723 | U20: =VLOOKUP(B20,List!B:BG,17,FALSE) -> 1590
B21: FCAMX | C21: =VLOOKUP(B21,List!B:BG,2,FALSE) -> Franklin CA High Yield Municipal A | D21: =VLOOKUP(B21,List!B:BG,3,FALSE) -> Muni California Long | E21: 0 | F21: 0 | G21: =VLOOKUP(B21,List!B:BG,23,FALSE) -> -0.0421 | H21: =VLOOKUP(B21,List!B:BG,24,FALSE) -> 0.0145 | I21: =VLOOKUP(B21,List!B:BG,25,FALSE) -> 0.0104 | J21: =VLOOKUP(B21,List!B:BG,26,FALSE) -> 0.035 | L21: =VLOOKUP(B21,List!B:BG,39,FALSE) -> 1.52 | M21: =VLOOKUP(B21,List!B:BG,42,FALSE) -> 11 | N21: =VLOOKUP(B21,List!B:BG,46,FALSE) -> 1.42 | O21: =VLOOKUP(B21,List!B:BG,49,FALSE) -> 9.27 | P21: =VLOOKUP(B21,List!B:BG,53,FALSE) -> 1.19 | Q21: =VLOOKUP(B21,List!B:BG,56,FALSE) -> 7.03 | S21: =VLOOKUP(B21,List!B:BG,15,FALSE) -> 618 | T21: =VLOOKUP(B21,List!B:BG,16,FALSE) -> 761 | U21: =VLOOKUP(B21,List!B:BG,17,FALSE) -> 1178
B22: FCNTX | C22: =VLOOKUP(B22,List!B:BG,2,FALSE) -> Fidelity Contrafund | D22: =VLOOKUP(B22,List!B:BG,3,FALSE) -> Large Growth | E22: 10000 | F22: 0.1 | G22: =VLOOKUP(B22,List!B:BG,23,FALSE) -> 0.2479 | H22: =VLOOKUP(B22,List!B:BG,24,FALSE) -> 0.0331 | I22: =VLOOKUP(B22,List!B:BG,25,FALSE) -> 0.053 | J22: =VLOOKUP(B22,List!B:BG,26,FALSE) -> 0.0697 | L22: =VLOOKUP(B22,List!B:BG,39,FALSE) -> 0.85 | M22: =VLOOKUP(B22,List!B:BG,42,FALSE) -> 19.39 | N22: =VLOOKUP(B22,List!B:BG,46,FALSE) -> 0.87 | O22: =VLOOKUP(B22,List!B:BG,49,FALSE) -> 16.51 | P22: =VLOOKUP(B22,List!B:BG,53,FALSE) -> 0.77 | Q22: =VLOOKUP(B22,List!B:BG,56,FALSE) -> 13.8 | S22: =VLOOKUP(B22,List!B:BG,15,FALSE) -> 293 | T22: =VLOOKUP(B22,List!B:BG,16,FALSE) -> 509 | U22: =VLOOKUP(B22,List!B:BG,17,FALSE) -> 1131
B23: FDVLX | C23: =VLOOKUP(B23,List!B:BG,2,FALSE) -> Fidelity Value | D23: =VLOOKUP(B23,List!B:BG,3,FALSE) -> Mid-Cap Value | E23: 0 | F23: 0 | G23: =VLOOKUP(B23,List!B:BG,23,FALSE) -> 0.2803 | H23: =VLOOKUP(B23,List!B:BG,24,FALSE) -> 0.0317 | I23: =VLOOKUP(B23,List!B:BG,25,FALSE) -> 0.0237 | J23: =VLOOKUP(B23,List!B:BG,26,FALSE) -> 0.0781 | L23: =VLOOKUP(B23,List!B:BG,39,FALSE) -> 1.4 | M23: =VLOOKUP(B23,List!B:BG,42,FALSE) -> 31.69 | N23: =VLOOKUP(B23,List!B:BG,46,FALSE) -> 1.36 | O23: =VLOOKUP(B23,List!B:BG,49,FALSE) -> 25.26 | P23: =VLOOKUP(B23,List!B:BG,53,FALSE) -> 1.19 | Q23: =VLOOKUP(B23,List!B:BG,56,FALSE) -> 20.67 | S23: =VLOOKUP(B23,List!B:BG,15,FALSE) -> 205 | T23: =VLOOKUP(B23,List!B:BG,16,FALSE) -> 357 | U23: =VLOOKUP(B23,List!B:BG,17,FALSE) -> 798
B24: FEXPX | C24: =VLOOKUP(B24,List!B:BG,2,FALSE) -> Fidelity Export & Multinational | D24: =VLOOKUP(B24,List!B:BG,3,FALSE) -> Large Growth | E24: 0 | F24: 0 | G24: =VLOOKUP(B24,List!B:BG,23,FALSE) -> 0 | H24: =VLOOKUP(B24,List!B:BG,24,FALSE) -> 0 | I24: =VLOOKUP(B24,List!B:BG,25,FALSE) -> 0 | J24: =VLOOKUP(B24,List!B:BG,26,FALSE) -> 0 | L24: =VLOOKUP(B24,List!B:BG,39,FALSE) -> 1.03 | M24: =VLOOKUP(B24,List!B:BG,42,FALSE) -> 23.46 | N24: =VLOOKUP(B24,List!B:BG,46,FALSE) -> 1.05 | O24: =VLOOKUP(B24,List!B:BG,49,FALSE) -> 19.86 | P24: =VLOOKUP(B24,List!B:BG,53,FALSE) -> 1.06 | Q24: =VLOOKUP(B24,List!B:BG,56,FALSE) -> 18.1 | S24: =VLOOKUP(B24,List!B:BG,15,FALSE) -> 274 | T24: =VLOOKUP(B24,List!B:BG,16,FALSE) -> 477 | U24: =VLOOKUP(B24,List!B:BG,17,FALSE) -> 1061
B25: FISGX | C25: =VLOOKUP(B25,List!B:BG,2,FALSE) -> Nuveen Mid Cap Growth Opp I | D25: =VLOOKUP(B25,List!B:BG,3,FALSE) -> Mid-Cap Growth | E25: 10000 | F25: 0.1 | G25: =VLOOKUP(B25,List!B:BG,23,FALSE) -> 0.3668 | H25: =VLOOKUP(B25,List!B:BG,24,FALSE) -> 0.0671 | I25: =VLOOKUP(B25,List!B:BG,25,FALSE) -> 0.0526 | J25: =VLOOKUP(B25,List!B:BG,26,FALSE) -> 0.0794 | L25: =VLOOKUP(B25,List!B:BG,39,FALSE) -> 1.04 | M25: =VLOOKUP(B25,List!B:BG,42,FALSE) -> 24.61 | N25: =VLOOKUP(B25,List!B:BG,46,FALSE) -> 1.06 | O25: =VLOOKUP(B25,List!B:BG,49,FALSE) -> 20.59 | P25: =VLOOKUP(B25,List!B:BG,53,FALSE) -> 1.04 | Q25: =VLOOKUP(B25,List!B:BG,56,FALSE) -> 18.43 | S25: =VLOOKUP(B25,List!B:BG,15,FALSE) -> 331 | T25: =VLOOKUP(B25,List!B:BG,16,FALSE) -> 574 | U25: =VLOOKUP(B25,List!B:BG,17,FALSE) -> 1271
B26: FSHOX | C26: =VLOOKUP(B26,List!B:BG,2,FALSE) -> Fidelity Select Construction & Housing | D26: =VLOOKUP(B26,List!B:BG,3,FALSE) -> Miscellaneous Sector | E26: 0 | F26: 0 | G26: =VLOOKUP(B26,List!B:BG,23,FALSE) -> 0.2624 | H26: =VLOOKUP(B26,List!B:BG,24,FALSE) -> 0.0599 | I26: =VLOOKUP(B26,List!B:BG,25,FALSE) -> 0.0055 | J26: =VLOOKUP(B26,List!B:BG,26,FALSE) -> 0.0909 | L26: =VLOOKUP(B26,List!B:BG,39,FALSE) -> 1.29 | M26: =VLOOKUP(B26,List!B:BG,42,FALSE) -> 32.33 | N26: =VLOOKUP(B26,List!B:BG,46,FALSE) -> 1.25 | O26: =VLOOKUP(B26,List!B:BG,49,FALSE) -> 26.88 | P26: =VLOOKUP(B26,List!B:BG,53,FALSE) -> 1.16 | Q26: =VLOOKUP(B26,List!B:BG,56,FALSE) -> 23.54 | S26: =VLOOKUP(B26,List!B:BG,15,FALSE) -> 322 | T26: =VLOOKUP(B26,List!B:BG,16,FALSE) -> 558 | U26: =VLOOKUP(B26,List!B:BG,17,FALSE) -> 1236
B27: HMTGX | C27: =VLOOKUP(B27,List!B:BG,2,FALSE) -> Huntington Mortgage Securities Trust | D27: =VLOOKUP(B27,List!B:BG,3,FALSE) -> Intermediate-Term Bond | E27: 10000 | F27: 0.1 | G27: =VLOOKUP(B27,List!B:BG,23,FALSE) -> 0.0436 | H27: =VLOOKUP(B27,List!B:BG,24,FALSE) -> 0.0383 | I27: =VLOOKUP(B27,List!B:BG,25,FALSE) -> 0.0446 | J27: =VLOOKUP(B27,List!B:BG,26,FALSE) -> 0.0513 | L27: =VLOOKUP(B27,List!B:BG,39,FALSE) -> 0.65 | M27: =VLOOKUP(B27,List!B:BG,42,FALSE) -> 3.63 | N27: =VLOOKUP(B27,List!B:BG,46,FALSE) -> 0.69 | O27: =VLOOKUP(B27,List!B:BG,49,FALSE) -> 3.28 | P27: =VLOOKUP(B27,List!B:BG,53,FALSE) -> 0.62 | Q27: =VLOOKUP(B27,List!B:BG,56,FALSE) -> 3.2 | S27: =VLOOKUP(B27,List!B:BG,15,FALSE) -> 359 | T27: =VLOOKUP(B27,List!B:BG,16,FALSE) -> 622 | U27: =VLOOKUP(B27,List!B:BG,17,FALSE) -> 1375
B28: IDQYX | C28: =VLOOKUP(B28,List!B:BG,2,FALSE) -> Columbia Diversified Equity Income R4 | D28: =VLOOKUP(B28,List!B:BG,3,FALSE) -> Large Value | E28: 0 | F28: 0 | G28: =VLOOKUP(B28,List!B:BG,23,FALSE) -> 0.1703 | H28: =VLOOKUP(B28,List!B:BG,24,FALSE) -> 0.0156 | I28: =VLOOKUP(B28,List!B:BG,25,FALSE) -> 0.0228 | J28: =VLOOKUP(B28,List!B:BG,26,FALSE) -> 0.07 | L28: =VLOOKUP(B28,List!B:BG,39,FALSE) -> 1.09 | M28: =VLOOKUP(B28,List!B:BG,42,FALSE) -> 24.14 | N28: =VLOOKUP(B28,List!B:BG,46,FALSE) -> 1.09 | O28: =VLOOKUP(B28,List!B:BG,49,FALSE) -> 19.73 | P28: =VLOOKUP(B28,List!B:BG,53,FALSE) -> 1.07 | Q28: =VLOOKUP(B28,List!B:BG,56,FALSE) -> 17.87 | S28: =VLOOKUP(B28,List!B:BG,15,FALSE) -> 294 | T28: =VLOOKUP(B28,List!B:BG,16,FALSE) -> 510 | U28: =VLOOKUP(B28,List!B:BG,17,FALSE) -> 1136
B29: JASCX | C29: =VLOOKUP(B29,List!B:BG,2,FALSE) -> James Small Cap | D29: =VLOOKUP(B29,List!B:BG,3,FALSE) -> Small Value | E29: 0 | F29: 0 | G29: =VLOOKUP(B29,List!B:BG,23,FALSE) -> 0.34 | H29: =VLOOKUP(B29,List!B:BG,24,FALSE) -> 0.0392 | I29: =VLOOKUP(B29,List!B:BG,25,FALSE) -> 0.005 | J29: =VLOOKUP(B29,List!B:BG,26,FALSE) -> 0.0933 | L29: =VLOOKUP(B29,List!B:BG,39,FALSE) -> 0.89 | M29: =VLOOKUP(B29,List!B:BG,42,FALSE) -> 20.97 | N29: =VLOOKUP(B29,List!B:BG,46,FALSE) -> 0.9 | O29: =VLOOKUP(B29,List!B:BG,49,FALSE) -> 17.71 | P29: =VLOOKUP(B29,List!B:BG,53,FALSE) -> 0.87 | Q29: =VLOOKUP(B29,List!B:BG,56,FALSE) -> 17.24 | S29: =VLOOKUP(B29,List!B:BG,15,FALSE) -> 474 | T29: =VLOOKUP(B29,List!B:BG,16,FALSE) -> 818 | U29: =VLOOKUP(B29,List!B:BG,17,FALSE) -> 1788
B30: JMCVX | C30: =VLOOKUP(B30,List!B:BG,2,FALSE) -> Perkins Mid Cap Value T | D30: =VLOOKUP(B30,List!B:BG,3,FALSE) -> Mid-Cap Value | E30: 10000 | F30: 0.1 | G30: =VLOOKUP(B30,List!B:BG,23,FALSE) -> 0.1935 | H30: =VLOOKUP(B30,List!B:BG,24,FALSE) -> 0.0574 | I30: =VLOOKUP(B30,List!B:BG,25,FALSE) -> 0.065 | J30: =VLOOKUP(B30,List!B:BG,26,FALSE) -> 0.0976 | L30: =VLOOKUP(B30,List!B:BG,39,FALSE) -> 0.91 | M30: =VLOOKUP(B30,List!B:BG,42,FALSE) -> 20.4 | N30: =VLOOKUP(B30,List!B:BG,46,FALSE) -> 0.89 | O30: =VLOOKUP(B30,List!B:BG,49,FALSE) -> 16.45 | P30: =VLOOKUP(B30,List!B:BG,53,FALSE) -> 0.91 | Q30: =VLOOKUP(B30,List!B:BG,56,FALSE) -> 15.72 | S30: =VLOOKUP(B30,List!B:BG,15,FALSE) -> 325 | T30: =VLOOKUP(B30,List!B:BG,16,FALSE) -> 563 | U30: =VLOOKUP(B30,List!B:BG,17,FALSE) -> 1248
B31: KSCVX | C31: =VLOOKUP(B31,List!B:BG,2,FALSE) -> Keeley Small Cap Value A | D31: =VLOOKUP(B31,List!B:BG,3,FALSE) -> Small Blend | E31: 0 | F31: 0 | G31: =VLOOKUP(B31,List!B:BG,23,FALSE) -> 0.2695 | H31: =VLOOKUP(B31,List!B:BG,24,FALSE) -> -0.0072 | I31: =VLOOKUP(B31,List!B:BG,25,FALSE) -> 0.017 | J31: =VLOOKUP(B31,List!B:BG,26,FALSE) -> 0.0989 | L31: =VLOOKUP(B31,List!B:BG,39,FALSE) -> 1.34 | M31: =VLOOKUP(B31,List!B:BG,42,FALSE) -> 31.26 | N31: =VLOOKUP(B31,List!B:BG,46,FALSE) -> 1.32 | O31: =VLOOKUP(B31,List!B:BG,49,FALSE) -> 25.83 | P31: =VLOOKUP(B31,List!B:BG,53,FALSE) -> 1.13 | Q31: =VLOOKUP(B31,List!B:BG,56,FALSE) -> 21.62 | S31: =VLOOKUP(B31,List!B:BG,15,FALSE) -> 861 | T31: =VLOOKUP(B31,List!B:BG,16,FALSE) -> 1161 | U31: =VLOOKUP(B31,List!B:BG,17,FALSE) -> 2011
B32: MALTX | C32: =VLOOKUP(B32,List!B:BG,2,FALSE) -> BlackRock Latin America Instl | D32: =VLOOKUP(B32,List!B:BG,3,FALSE) -> Latin America Stock | E32: 10000 | F32: 0.1 | G32: =VLOOKUP(B32,List!B:BG,23,FALSE) -> 0.2004 | H32: =VLOOKUP(B32,List!B:BG,24,FALSE) -> 0.0344 | I32: =VLOOKUP(B32,List!B:BG,25,FALSE) -> 0.1537 | J32: =VLOOKUP(B32,List!B:BG,26,FALSE) -> 0.2089 | L32: =VLOOKUP(B32,List!B:BG,39,FALSE) -> 1.33 | M32: =VLOOKUP(B32,List!B:BG,42,FALSE) -> 38.81 | N32: =VLOOKUP(B32,List!B:BG,46,FALSE) -> 1.36 | O32: =VLOOKUP(B32,List!B:BG,49,FALSE) -> 33.1 | P32: =VLOOKUP(B32,List!B:BG,53,FALSE) -> 1.37 | Q32: =VLOOKUP(B32,List!B:BG,56,FALSE) -> 29.75 | S32: =VLOOKUP(B32,List!B:BG,15,FALSE) -> 397 | T32: =VLOOKUP(B32,List!B:BG,16,FALSE) -> 686 | U32: =VLOOKUP(B32,List!B:BG,17,FALSE) -> 1511
B33: MMELX | C33: =VLOOKUP(B33,List!B:BG,2,FALSE) -> MassMutual Select Mid Cap Gr Eq II L | D33: =VLOOKUP(B33,List!B:BG,3,FALSE) -> Mid-Cap Growth | E33: 10000 | F33: 0.1 | G33: =VLOOKUP(B33,List!B:BG,23,FALSE) -> 0.2794 | H33: =VLOOKUP(B33,List!B:BG,24,FALSE) -> 0.0976 | I33: =VLOOKUP(B33,List!B:BG,25,FALSE) -> 0.0663 | J33: =VLOOKUP(B33,List!B:BG,26,FALSE) -> 0.0921 | L33: =VLOOKUP(B33,List!B:BG,39,FALSE) -> 1.1 | M33: =VLOOKUP(B33,List!B:BG,42,FALSE) -> 25.17 | N33: =VLOOKUP(B33,List!B:BG,46,FALSE) -> 1.1 | O33: =VLOOKUP(B33,List!B:BG,49,FALSE) -> 20.75 | P33: =VLOOKUP(B33,List!B:BG,53,FALSE) -> 1.1 | Q33: =VLOOKUP(B33,List!B:BG,56,FALSE) -> 18.82 | S33: =VLOOKUP(B33,List!B:BG,15,FALSE) -> 371 | T33: =VLOOKUP(B33,List!B:BG,16,FALSE) -> 650 | U33: =VLOOKUP(B33,List!B:BG,17,FALSE) -> 1446
C35: Weighted Portfolio | E35: =SUM(E10:E33) -> 100000 | F35: =SUM(F10:F33) -> 1 | G35: =SUMPRODUCT(F10:F33,G10:G33) -> 0.22939 | H35: =SUMPRODUCT(F10:F33,H10:H33) -> 0.05415 | I35: =SUMPRODUCT(F10:F33,I10:I33) -> 0.07335 | J35: =SUMPRODUCT(F10:F33,J10:J33) -> 0.10634 | L35: =SUMPRODUCT(F10:F33,L10:L33) -> 0.975 | M35: =SUMPRODUCT(F10:F33,M10:M33) -> 22.126 | N35: =SUMPRODUCT(F10:F33,N10:N33) -> 0.982 | O35: =SUMPRODUCT(F10:F33,O10:O33) -> 18.411 | P35: =SUMPRODUCT(F10:F33,P10:P33) -> 0.931 | Q35: =SUMPRODUCT(F10:F33,Q10:Q33) -> 16.55 | S35: =SUMPRODUCT(F10:F33,S10:S33) -> 331.7 | T35: =SUMPRODUCT(F10:F33,T10:T33) -> 575.9 | U35: =SUMPRODUCT(F10:F33,U10:U33) -> 1275.6

Sheet List
B2: Fund Overview | F2: Investment Information | J2: Fees and Expenses | S2: Fund Operations | W2: Performance Overview | AL2: Fund Risk
B3: Fund Ticker | C3: Fund Name | D3: Fund Category | E3: Fund Family | F3: Min Initial Investment: | G3: Min Initial Investment, IRA: | H3: Min Subsequent Investment: | I3: Min Subsequent Investment, IRA: | J3: Annual Report Expense Ratio (net): | K3: Prospectus Net Expense Ratio: | L3: Prospectus Gross Expense Ratio: | M3: Max 12b1 Fee: | N3: Max Front End Sales Load: | O3: Max Deferred Sales Load: | P3: 3 Yr Exp Proj / $10,000 | Q3: 5 Yr Exp Proj / $10,000 | R3: 10 Yr Exp Proj / $10,000 | S3: Last Dividend | T3: Last Cap Gain | U3: Annual Holdings Turnover | V3: Avg Annual Holdings Turnover for Category | W3: Morningstar Return Rating | X3: Load Adj 1-Yr Return | Y3: Load Adj 3-Yr Return | Z3: Load Adj 5-Yr Return | AA3: Load Adj 10-Yr Return | AB3: YTD Trailing Return | AC3: 1-Month Trailing Return | AD3: 3-Month Trailing Return | AE3: 1-Year Trailing Return | AF3: 3-Year Trailing Return | AG3: 5-Year Trailing Return | AH3: YTD Total Return Rank | AI3: 1-Year Total Return Rank | AJ3: 3-Year Total Return Rank | AK3: 5-Year Total Return Rank | AL3: Morningstar Risk Rating | AM3: 3 Yr Alpha | AN3: 3 Yr Beta | AO3: 3 Yr Mean Annual Return | AP3: 3 Yr R-squared | AQ3: 3 Yr Standard Deviation | AR3: 3 Yr Sharpe Ratio | AS3: 3 Yr Treynor Ratio | AT3: 5 Yr Alpha | AU3: 5 Yr Beta | AV3: 5 Yr Mean Annual Return | AW3: 5 Yr R-squared | AX3: 5 Yr Standard Deviation | AY3: 5 Yr Sharpe Ratio | AZ3: 5 Yr Treynor Ratio | BA3: 10 Yr Alpha | BB3: 10 Yr Beta | BC3: 10 Yr Mean Annual Return | BD3: 10 Yr R-squared | BE3: 10 Yr Standard Deviation | BF3: 10 Yr Sharpe Ratio | BG3: 10 Yr Treynor Ratio
A4: 1 | B4: FEXPX | C4: Fidelity Export & Multinational | D4: Large Growth | E4: Fidelity Investments | F4: 2500 | G4: 500 | H4: N/A | I4: N/A | J4: 0.0084 | K4: 0.0086 | L4: 0.0086 | M4: N/A | N4: N/A | O4: N/A | P4: 274 | Q4: 477 | R4: 1061 | S4: 0.08 | T4: 0 | U4: 1.97 | V4: 0.891 | AB4: 0 | AC4: 0 | AD4: 0 | AE4: 0 | AF4: 0 | AG4: 0 | AL4: 3 | AM4: -1.09 | AN4: 1.03 | AO4: 0.3 | AP4: 92.7 | AQ4: 23.46 | AR4: 0.13 | AS4: 0.39 | AT4: -0.29 | AU4: 1.05 | AV4: 0.36 | AW4: 89.89 | AX4: 19.86 | AY4: 0.11 | AZ4: 0.15 | BA4: 2.74 | BB4: 1.06 | BC4: 0.56 | BD4: 90.18 | BE4: 18.1 | BF4: 0.25 | BG4: 2.85
A5: 2 | B5: MPGFX | C5: Mairs & Power Growth Inv | D5: Large Blend | E5: Mairs & Power | F5: 2500 | G5: 1000 | H5: 100 | I5: 100 | J5: 0.0071 | K5: 0.0071 | L5: 0.0071 | M5: N/A | N5: N/A | O5: N/A | P5: 228 | Q5: 396 | R5: 885 | S5: 0.2 | T5: 0 | U5: 0.0181 | V5: 0.6942 | W5: 5 | X5: 0.2128 | Y5: 0.0447 | Z5: 0.0373 | AA5: 0.0683 | AB5: 0.045 | AC5: 0.0306 | AD5: 0.1138 | AE5: 0.2128 | AF5: 0.0447 | AG5: 0.0373 | AH5: 78 | AI5: 45 | AJ5: 10 | AK5: 20 | AL5: 3 | AM5: 2.41 | AN5: 0.98 | AO5: 0.58 | AP5: 90.79 | AQ5: 22.52 | AR5: 0.29 | AS5: 4.09 | AT5: 0.96 | AU5: 0.95 | AV5: 0.44 | AW5: 89.01 | AX5: 18.05 | AY5: 0.18 | AZ5: 1.64 | BA5: 4.12 | BB5: 0.86 | BC5: 0.65 | BD5: 84.37 | BE5: 15.04 | BF5: 0.37 | BG5: 5.43
A6: 3 | B6: SLASX | C6: Selected American Shares S | D6: Large Blend | E6: Selected Funds | F6: 1000 | G6: 1000 | H6: 25 | I6: 25 | J6: 0.0093 | K6: 0.0094 | L6: 0.0094 | M6: 0.0025 | N6: N/A | O6: N/A | P6: 300 | Q6: 520 | R6: 1155 | S6: 0.28 | T6: 0.01 | U6: 0.09 | V6: 0.6942 | W6: 3 | X6: 0.1785 | Y6: 0.0012 | Z6: 0.0207 | AA6: 0.0349 | AB6: 0.0372 | AC6: 0.0241 | AD6: 0.1086 | AE6: 0.1785 | AF6: 0.0012 | AG6: 0.0207 | AH6: 90 | AI6: 84 | AJ6: 78 | AK6: 61 | AL6: 4 | AM6: -1.92 | AN6: 1.08 | AO6: 0.25 | AP6: 97.15 | AQ6: 24.04 | AR6: 0.1 | AS6: -0.32 | AT6: -0.66 | AU6: 1.06 | AV6: 0.33 | AW6: 96.48 | AX6: 19.3 | AY6: 0.09 | AZ6: -0.08 | BA6: 0.92 | BB6: 0.98 | BC6: 0.4 | BD6: 93.56 | BE6: 16.3 | BF6: 0.16 | BG6: 1.34
A7: 4 | B7: AGTHX | C7: American Funds Growth Fund of Amer A | D7: Large Growth | E7: American Funds | F7: 250 | G7: 250 | H7: 50 | I7: 50 | J7: 0.0069 | K7: 0.0069 | L7: 0.0069 | M7: 0.0023 | N7: 0.0575 | O7: N/A | P7: 783 | Q7: 937 | R7: 1384 | S7: 0.21 | T7: 2.06 | U7: 0.33 | V7: 0.891 | W7: 3 | X7: 0.0696 | Y7: -0.003 | Z7: 0.0149 | AA7: 0.0428 | AB7: 0.0529 | AC7: 0.0016 | AD7: 0.0529 | AE7: 0.1348 | AF7: 0.0169 | AG7: 0.027 | AH7: 55 | AI7: 77 | AJ7: 73 | AK7: 57 | AL7: 3 | AM7: -0.56 | AN7: 0.96 | AO7: 0.34 | AP7: 95.49 | AQ7: 21.58 | AR7: 0.17 | AS7: 1.31 | AT7: 0.12 | AU7: 0.96 | AV7: 0.35 | AW7: 94.41 | AX7: 17.6 | AY7: 0.12 | AZ7: 0.65 | BA7: 1.66 | BB7: 1.01 | BC7: 0.52 | BD7: 92.24 | BE7: 16.77 | BF7: 0.24 | BG7: 2.74
A8: 5 | B8: AMAGX | C8: Amana Trust Growth | D8: Large Growth | E8: Amana | F8: 250 | G8: 100 | H8: 25 | I8: 25 | J8: 0.012 | K8: 0.0121 | L8: 0.0121 | M8: 0.0025 | N8: N/A | O8: N/A | P8: 384 | Q8: 665 | R8: 1466 | S8: 0.46 | T8: 0.07 | U8: 0.05 | V8: 0.891 | W8: 5 | X8: 0.207 | Y8: 0.0617 | Z8: 0.0678 | AA8: 0.0755 | AB8: 0.0388 | AC8: 0.0243 | AD8: 0.087 | AE8: 0.207 | AF8: 0.0617 | AG8: 0.0678 | AH8: 86 | AI8: 68 | AJ8: 14 | AK8: 6 | AL8: 2 | AM8: 4 | AN8: 0.77 | AO8: 0.64 | AP8: 87.13 | AQ8: 17.96 | AR8: 0.4 | AS8: 7.45 | AT8: 3.78 | AU8: 0.79 | AV8: 0.64 | AW8: 86.02 | AX8: 15.16 | AY8: 0.37 | AZ8: 5.88 | BA8: 4.84 | BB8: 0.91 | BC8: 0.72 | BD8: 84.78 | BE8: 15.95 | BF8: 0.4 | BG8: 5.9
A9: 6 | B9: FCNTX | C9: Fidelity Contrafund | D9: Large Growth | E9: Fidelity Investments | F9: 2500 | G9: 500 | H9: N/A | I9: N/A | J9: 0.0091 | K9: 0.0092 | L9: 0.0092 | M9: N/A | N9: N/A | O9: N/A | P9: 293 | Q9: 509 | R9: 1131 | S9: 0 | T9: 0 | U9: 0.46 | V9: 0.891 | W9: 4 | X9: 0.2479 | Y9: 0.0331 | Z9: 0.053 | AA9: 0.0697 | AB9: 0.0473 | AC9: 0.0412 | AD9: 0.0887 | AE9: 0.2479 | AF9: 0.0331 | AG9: 0.053 | AH9: 65 | AI9: 36 | AJ9: 47 | AK9: 17 | AL9: 1 | AM9: 1.16 | AN9: 0.85 | AO9: 0.43 | AP9: 92.89 | AQ9: 19.39 | AR9: 0.24 | AS9: 3.33 | AT9: 2.4 | AU9: 0.87 | AV9: 0.55 | AW9: 89.19 | AX9: 16.51 | AY9: 0.27 | AZ9: 3.6 | BA9: 4.22 | BB9: 0.77 | BC9: 0.64 | BD9: 80.52 | BE9: 13.8 | BF9: 0.4 | BG9: 6.24
A10: 7 | B10: AAGAX | C10: American Beacon Lg Cap Value AMR | D10: Large Value | E10: American Beacon | F10: 0 | G10: 0 | H10: N/A | I10: 0 | J10: 0.0034 | K10: 0.0035 | L10: 0.0035 | M10: 0 | N10: N/A | O10: N/A | P10: 113 | Q10: 197 | R10: 443 | S10: 0.33 | T10: 0.71 | U10: 0.28 | V10: 0.6026 | W10: 4 | X10: 0.2059 | Y10: 0.0084 | Z10: 0.0242 | AA10: 0.0592 | AB10: 0.056 | AC10: 0.0278 | AD10: 0.1357 | AE10: 0.2059 | AF10: 0.0084 | AG10: 0.0242 | AH10: 54 | AI10: 44 | AJ10: 47 | AK10: 35 | AL10: 4 | AM10: -1.22 | AN10: 1.08 | AO10: 0.31 | AP10: 98.66 | AQ10: 23.89 | AR10: 0.14 | AS10: 0.35 | AT10: -0.32 | AU10: 1.07 | AV10: 0.36 | AW10: 97.92 | AX10: 19.31 | AY10: 0.11 | AZ10: 0.25 | BA10: 3.28 | BB10: 1.01 | BC10: 0.6 | BD10: 93.9 | BE10: 16.8 | BF10: 0.3 | BG10: 3.71
A11: 8 | B11: IDQYX | C11: Columbia Diversified Equity Income R4 | D11: Large Value | E11: Columbia | F11: 2000 | G11: 1000 | H11: 100 | I11: 100 | J11: 0.0097 | K11: 0.0092 | L11: 0.0092 | M11: 0 | N11: N/A | O11: N/A | P11: 294 | Q11: 510 | R11: 1136 | S11: 0.04 | T11: 0 | U11: 0.34 | V11: 0.6026 | W11: 4 | X11: 0.1703 | Y11: 0.0156 | Z11: 0.0228 | AA11: 0.07 | AB11: 0.0591 | AC11: 0.0149 | AD11: 0.0591 | AE11: 0.1703 | AF11: 0.0156 | AG11: 0.0228 | AH11: 50 | AI11: 14 | AJ11: 44 | AK11: 35 | AL11: 4 | AM11: -0.65 | AN11: 1.09 | AO11: 0.37 | AP11: 98.29 | AQ11: 24.14 | AR11: 0.17 | AS11: 1.04 | AT11: -0.16 | AU11: 1.09 | AV11: 0.35 | AW11: 97.34 | AX11: 19.73 | AY11: 0.11 | AZ11: 0.19 | BA11: 3.7 | BB11: 1.07 | BC11: 0.7 | BD11: 91.9 | BE11: 17.87 | BF11: 0.35 | BG11: 4.54
A12: 9 | B12: UMBIX | C12: Columbia Value & Restructuring Z | D12: Large Value | E12: Columbia | F12: 2500 | G12: 1000 | H12: 0 | I12: 0 | J12: 0.0089 | K12: 0.0091 | L12: 0.0091 | M12: 0 | N12: N/A | O12: N/A | P12: 290 | Q12: 504 | R12: 1120 | S12: 0.09 | T12: 0 | U12: 0.06 | V12: 0.6026 | W12: 4 | X12: 0.2526 | Y12: 0.0018 | Z12: 0.029 | AA12: 0.0595 | AB12: 0.0297 | AC12: 0.0246 | AD12: 0.1245 | AE12: 0.2526 | AF12: 0.0018 | AG12: 0.029 | AH12: 98 | AI12: 7 | AJ12: 59 | AK12: 27 | AL12: 5 | AM12: -1 | AN12: 1.3 | AO12: 0.4 | AP12: 89.39 | AQ12: 30.1 | AR12: 0.14 | AS12: -0.22 | AT12: 0.84 | AU12: 1.28 | AV12: 0.49 | AW12: 87.66 | AX12: 24.36 | AY12: 0.16 | AZ12: 0.58 | BA12: 3.79 | BB12: 1.22 | BC12: 0.67 | BD12: 87.05 | BE12: 21.02 | BF12: 0.28 | BG12: 3.1
A13: 10 | B13: CRMMX | C13: CRM Mid Cap Value Inv | D13: Mid-Cap Blend | E13: CRM | F13: 2500 | G13: 2000 | H13: 100 | I13: 100 | J13: 0.0103 | K13: 0.0104 | L13: 0.0104 | M13: N/A | N13: N/A | O13: N/A | P13: 331 | Q13: 574 | R13: 1271 | S13: 0.07 | T13: 3.03 | U13: 1.26 | V13: 0.9032 | W13: 4 | X13: 0.2686 | Y13: 0.0428 | Z13: 0.052 | AA13: 0.0967 | AB13: 0.0641 | AC13: 0.0355 | AD13: 0.1549 | AE13: 0.2686 | AF13: 0.0428 | AG13: 0.052 | AH13: 43 | AI13: 65 | AJ13: 65 | AK13: 34 | AL13: 2 | AM13: 2.16 | AN13: 0.98 | AO13: 0.55 | AP13: 94.8 | AQ13: 22.01 | AR13: 0.28 | AS13: 3.9 | AT13: 2.34 | AU13: 0.97 | AV13: 0.56 | AW13: 93.32 | AX13: 17.98 | AY13: 0.26 | AZ13: 3.13 | BA13: 6.86 | BB13: 0.91 | BC13: 0.88 | BD13: 82.29 | BE13: 16.17 | BF13: 0.52 | BG13: 8.24
A14: 11 | B14: TAVFX | C14: Third Avenue Value Instl | D14: World Stock | E14: Third Avenue | F14: 100000 | G14: 100000 | H14: 1000 | I14: 200 | J14: 0.0115 | K14: 0.0115 | L14: 0.0119 | M14: N/A | N14: N/A | O14: N/A | P14: 374 | Q14: 651 | R14: 1441 | S14: 1.14 | T14: 0 | U14: 0.02 | V14: 0.8376 | W14: 3 | X14: 0.1627 | Y14: 0.0191 | Z14: 0.0113 | AA14: 0.0716 | AB14: 0.0398 | AC14: 0.0338 | AD14: 0.0398 | AE14: 0.1627 | AF14: 0.0191 | AG14: 0.0113 | AH14: 56 | AI14: 31 | AJ14: 35 | AK14: 72 | AL14: 4 | AM14: 5.5 | AN14: 1 | AO14: 0.49 | AP14: 84.68 | AQ14: 28.47 | AR14: 0.19 | AS14: 1.48 | AT14: 0.14 | AU14: 0.97 | AV14: 0.31 | AW14: 82.92 | AX14: 22.88 | AY14: 0.07 | AZ14: -0.98 | BA14: 2.13 | BB14: 0.92 | BC14: 0.72 | BD14: 80.38 | BE14: 18.76 | BF14: 0.35 | BG14: 5.47
A15: 12 | B15: WWNPX | C15: Kinetics Paradigm No Load | D15: World Stock | E15: Kinetics | F15: 2500 | G15: 2500 | H15: 100 | I15: 100 | J15: 0.0164 | K15: 0.0164 | L15: 0.0174 | M15: N/A | N15: N/A | O15: N/A | P15: 539 | Q15: 935 | R15: 2044 | S15: 0.17 | T15: 0.08 | U15: 0.07 | V15: 0.8376 | W15: 4 | X15: 0.2632 | Y15: -0.0271 | Z15: 0.0285 | AA15: 0.0961 | AB15: 0.0459 | AC15: 0.0397 | AD15: 0.0932 | AE15: 0.2632 | AF15: -0.0271 | AG15: 0.0285 | AH15: 34 | AI15: 15 | AJ15: 79 | AK15: 55 | AL15: 4 | AM15: 0.33 | AN15: 0.99 | AO15: 0.09 | AP15: 86.71 | AQ15: 27.95 | AR15: 0.02 | AS15: -3.19 | AT15: 0.82 | AU15: 1 | AV15: 0.46 | AW15: 83.59 | AX15: 23.45 | AY15: 0.15 | AZ15: 0.7 | BA15: 4.98 | BB15: 0.86 | BC15: 0.91 | BD15: 74.97 | BE15: 18.49 | BF15: 0.47 | BG15: 8.58
A16: 13 | B16: CVGRX | C16: Calamos Growth A | D16: Large Growth | E16: Calamos | F16: 2500 | G16: 500 | H16: 50 | I16: 50 | J16: 0.0127 | K16: 0.0128 | L16: 0.0128 | M16: 0.0025 | N16: 0.0475 | O16: N/A | P16: 862 | Q16: 1145 | R16: 1947 | S16: 0.07 | T16: 7.56 | U16: 0.527 | V16: 0.891 | W16: 4 | X16: 0.241 | Y16: 0.0175 | Z16: 0.0183 | AA16: 0.0554 | AB16: 0.0508 | AC16: 0.0356 | AD16: 0.1162 | AE16: 0.3029 | AF16: 0.0342 | AG16: 0.0283 | AH16: 54 | AI16: 9 | AJ16: 45 | AK16: 59 | AL16: 5 | AM16: 1.83 | AN16: 1.13 | AO16: 0.58 | AP16: 87.26 | AQ16: 26.56 | AR16: 0.24 | AS16: 2.61 | AT16: 0.58 | AU16: 1.16 | AV16: 0.45 | AW16: 84.02 | AX16: 22.57 | AY16: 0.14 | AZ16: 0.58 | BA16: 3.83 | BB16: 1.03 | BC16: 0.65 | BD16: 74.12 | BE16: 19.27 | BF16: 0.29 | BG16: 3.76
A17: 14 | B17: FISGX | C17: Nuveen Mid Cap Growth Opp I | D17: Mid-Cap Growth | E17: Nuveen | F17: 100000 | G17: N/A | H17: N/A | I17: N/A | J17: 0.0098 | K17: 0.0104 | L17: 0.0104 | M17: 0 | N17: N/A | O17: N/A | P17: 331 | Q17: 574 | R17: 1271 | S17: 0 | T17: 4.67 | U17: 1.14 | V17: 1.0615 | W17: 4 | X17: 0.3668 | Y17: 0.0671 | Z17: 0.0526 | AA17: 0.0794 | AB17: 0.0608 | AC17: 0.0505 | AD17: 0.1071 | AE17: 0.3668 | AF17: 0.0671 | AG17: 0.0526 | AH17: 37 | AI17: 17 | AJ17: 39 | AK17: 42 | AL17: 3 | AM17: 4.8 | AN17: 1.04 | AO17: 0.8 | AP17: 86.13 | AQ17: 24.61 | AR17: 0.37 | AS17: 5.99 | AT17: 2.7 | AU17: 1.06 | AV17: 0.61 | AW17: 83.78 | AX17: 20.59 | AY17: 0.25 | AZ17: 2.94 | BA17: 5.42 | BB17: 1.04 | BC17: 0.78 | BD17: 81.94 | BE17: 18.43 | BF17: 0.39 | BG17: 5.56
A18: 15 | B18: MMELX | C18: MassMutual Select Mid Cap Gr Eq II L | D18: Mid-Cap Growth | E18: MassMutual | F18: 0 | G18: N/A | H18: 0 | I18: N/A | J18: 0.011 | K18: 0.011 | L18: 0.012 | M18: N/A | N18: N/A | O18: N/A | P18: 371 | Q18: 650 | R18: 1446 | S18: N/A | T18: 0.27 | U18: 0.52 | V18: 1.0615 | W18: 4 | X18: 0.2794 | Y18: 0.0976 | Z18: 0.0663 | AA18: 0.0921 | AB18: 0.0846 | AC18: 0.0165 | AD18: 0.0846 | AE18: 0.2794 | AF18: 0.0976 | AG18: 0.0663 | AH18: 35 | AI18: 36 | AJ18: 22 | AK18: 21 | AL18: 3 | AM18: 7.44 | AN18: 1.1 | AO18: 1.05 | AP18: 90.72 | AQ18: 25.17 | AR18: 0.48 | AS18: 8.53 | AT18: 4.23 | AU18: 1.1 | AV18: 0.72 | AW18: 88.7 | AX18: 20.75 | AY18: 0.32 | AZ18: 4.16 | BA18: 5.86 | BB18: 1.1 | BC18: 0.89 | BD18: 87.6 | BE18: 18.82 | BF18: 0.45 | BG18: 6.41
A19: 16 | B19: FDVLX | C19: Fidelity Value | D19: Mid-Cap Value | E19: Fidelity Investments | F19: 2500 | G19: 500 | H19: N/A | I19: N/A | J19: 0.0063 | K19: 0.0064 | L19: 0.0064 | M19: N/A | N19: N/A | O19: N/A | P19: 205 | Q19: 357 | R19: 798 | S19: 0.01 | T19: 7.09 | U19: 1.48 | V19: 0.8083 | W19: 3 | X19: 0.2803 | Y19: 0.0317 | Z19: 0.0237 | AA19: 0.0781 | AB19: 0.0632 | AC19: 0.0311 | AD19: 0.1474 | AE19: 0.2803 | AF19: 0.0317 | AG19: 0.0237 | AH19: 30 | AI19: 38 | AJ19: 80 | AK19: 85 | AL19: 4 | AM19: 2 | AN19: 1.4 | AO19: 0.68 | AP19: 93.03 | AQ19: 31.69 | AR19: 0.24 | AS19: 1.94 | AT19: 0.32 | AU19: 1.36 | AV19: 0.47 | AW19: 91.85 | AX19: 25.26 | AY19: 0.14 | AZ19: 0.15 | BA19: 5.5 | BB19: 1.19 | BC19: 0.81 | BD19: 86.1 | BE19: 20.67 | BF19: 0.37 | BG19: 4.73
A20: 17 | B20: FSHOX | C20: Fidelity Select Construction & Housing | D20: Miscellaneous Sector | E20: Fidelity Investments | F20: 2500 | G20: 2500 | H20: N/A | I20: N/A | J20: 0.0101 | K20: 0.0101 | L20: 0.0101 | M20: N/A | N20: N/A | O20: N/A | P20: 322 | Q20: 558 | R20: 1236 | S20: 0.04 | T20: 0 | U20: 0.82 | V20: 1.2517 | W20: 3 | X20: 0.2624 | Y20: 0.0599 | Z20: 0.0055 | AA20: 0.0909 | AB20: 0.0676 | AC20: 0.0263 | AD20: 0.2016 | AE20: 0.2624 | AF20: 0.0599 | AG20: 0.0055 | AH20: 10 | AI20: 64 | AJ20: 75 | AK20: 100 | AL20: 4 | AM20: 5.21 | AN20: 1.29 | AO20: 0.92 | AP20: 76.65 | AQ20: 32.33 | AR20: 0.32 | AS20: 4.28 | AT20: -0.88 | AU20: 1.25 | AV20: 0.34 | AW20: 68.57 | AX20: 26.88 | AY20: 0.07 | AZ20: -1.29 | BA20: 7.34 | BB20: 1.16 | BC20: 0.96 | BD20: 62.51 | BE20: 23.54 | BF20: 0.4 | BG20: 5.98
A21: 18 | B21: JMCVX | C21: Perkins Mid Cap Value T | D21: Mid-Cap Value | E21: Janus | F21: 2500 | G21: 500 | H21: N/A | I21: N/A | J21: 0.0103 | K21: 0.0102 | L21: 0.0102 | M21: N/A | N21: N/A | O21: N/A | P21: 325 | Q21: 563 | R21: 1248 | S21: 0.04 | T21: 0.79 | U21: 0.66 | V21: 0.8083 | W21: 4 | X21: 0.1935 | Y21: 0.0574 | Z21: 0.065 | AA21: 0.0976 | AB21: 0.0501 | AC21: 0.0273 | AD21: 0.1134 | AE21: 0.1935 | AF21: 0.0574 | AG21: 0.065 | AH21: 74 | AI21: 94 | AJ21: 43 | AK21: 11 | AL21: 1 | AM21: 3.48 | AN21: 0.91 | AO21: 0.64 | AP21: 95.49 | AQ21: 20.4 | AR21: 0.35 | AS21: 5.8 | AT21: 3.49 | AU21: 0.89 | AV21: 0.64 | AW21: 93.41 | AX21: 16.45 | AY21: 0.34 | AZ21: 4.88 | BA21: 6.87 | BB21: 0.91 | BC21: 0.88 | BD21: 86.52 | BE21: 15.72 | BF21: 0.54 | BG21: 8.36
A22: 19 | B22: KSCVX | C22: Keeley Small Cap Value A | D22: Small Blend | E22: Keeley | F22: 2500 | G22: 2500 | H22: 50 | I22: N/A | J22: 0.0136 | K22: 0.0136 | L22: 0.0136 | M22: 0.0025 | N22: 0.045 | O22: N/A | P22: 861 | Q22: 1161 | R22: 2011 | S22: 0.04 | T22: 0.68 | U22: 0.09 | V22: 0.7709 | W22: 3 | X22: 0.2695 | Y22: -0.0072 | Z22: 0.017 | AA22: 0.0989 | AB22: 0.0573 | AC22: 0.0505 | AD22: 0.1508 | AE22: 0.3293 | AF22: 0.0082 | AG22: 0.0264 | AH22: 33 | AI22: 29 | AJ22: 95 | AK22: 65 | AL22: 5 | AM22: -0.15 | AN22: 1.34 | AO22: 0.49 | AP22: 88.27 | AQ22: 31.26 | AR22: 0.17 | AS22: 0.26 | AT22: 0.87 | AU22: 1.32 | AV22: 0.5 | AW22: 83.49 | AX22: 25.83 | AY22: 0.15 | AZ22: 0.37 | BA22: 8.22 | BB22: 1.13 | BC22: 1.03 | BD22: 70.8 | BE22: 21.62 | BF22: 0.47 | BG22: 7.29
A23: 20 | B23: PRCGX | C23: Perritt Micro Cap Opportunities | D23: Small Blend | E23: Perritt | F23: 1000 | G23: 250 | H23: 50 | I23: 50 | J23: 0.0127 | K23: 0.0127 | L23: 0.0127 | M23: N/A | N23: N/A | O23: N/A | P23: 403 | Q23: 697 | R23: 1534 | S23: 0.3 | T23: 4.47 | U23: 0.415 | V23: 0.7709 | W23: 4 | X23: 0.3038 | Y23: 0.0543 | Z23: 0.0282 | AA23: 0.1292 | AB23: 0.0295 | AC23: 0.0394 | AD23: 0.1096 | AE23: 0.3038 | AF23: 0.0543 | AG23: 0.0282 | AH23: 96 | AI23: 56 | AJ23: 72 | AK23: 62 | AL23: 5 | AM23: 4.3 | AN23: 1.24 | AO23: 0.82 | AP23: 82.36 | AQ23: 30.05 | AR23: 0.31 | AS23: 3.99 | AT23: 0.87 | AU23: 1.23 | AV23: 0.49 | AW23: 80.87 | AX23: 24.49 | AY23: 0.15 | AZ23: 0.54 | BA23: 10.54 | BB23: 1.1 | BC23: 1.22 | BD23: 66.84 | BE23: 21.65 | BF23: 0.57 | BG23: 9.78
A24: 21 | B24: TASVX | C24: Target Small Capitalization Value T | D24: Small Value | E24: Target Program | F24: 0 | G24: N/A | H24: N/A | I24: N/A | J24: 0.0076 | K24: 0.0076 | L24: 0.0076 | M24: N/A | N24: N/A | O24: N/A | P24: 243 | Q24: 422 | R24: 942 | S24: 0.2 | T24: 0.08 | U24: 0.33 | V24: 0.7194 | W24: 4 | X24: 0.294 | Y24: 0.0866 | Z24: 0.0601 | AA24: 0.1193 | AB24: 0.0617 | AC24: 0.0434 | AD24: 0.1349 | AE24: 0.294 | AF24: 0.0866 | AG24: 0.0601 | AH24: 22 | AI24: 57 | AJ24: 41 | AK24: 22 | AL24: 2 | AM24: 6.45 | AN24: 1.09 | AO24: 0.95 | AP24: 93.84 | AQ24: 24.63 | AR24: 0.44 | AS24: 7.52 | AT24: 3.27 | AU24: 1.08 | AV24: 0.66 | AW24: 91.35 | AX24: 20.1 | AY24: 0.29 | AZ24: 3.58 | BA24: 9.05 | BB24: 0.98 | BC24: 1.08 | BD24: 79.69 | BE24: 17.76 | BF24: 0.6 | BG24: 9.91
A25: 22 | B25: ACRNX | C25: Columbia Acorn Z | D25: Mid-Cap Growth | E25: Columbia | F25: 2500 | G25: 1000 | H25: 0 | I25: 0 | J25: 0.0076 | K25: 0.0077 | L25: 0.0077 | M25: 0 | N25: N/A | O25: N/A | P25: 246 | Q25: 428 | R25: 954 | S25: 0.03 | T25: 0 | U25: 0.28 | V25: 1.0615 | W25: 4 | X25: 0.3087 | Y25: 0.0715 | Z25: 0.0528 | AA25: 0.0986 | AB25: 0.0361 | AC25: 0.0375 | AD25: 0.1147 | AE25: 0.3087 | AF25: 0.0715 | AG25: 0.0528 | AH25: 88 | AI25: 56 | AJ25: 33 | AK25: 41 | AL25: 3 | AM25: 5.11 | AN25: 1.14 | AO25: 0.85 | AP25: 93.52 | AQ25: 25.78 | AR25: 0.38 | AS25: 5.87 | AT25: 2.65 | AU25: 1.13 | AV25: 0.62 | AW25: 91.96 | AX25: 21.1 | AY25: 0.25 | AZ25: 2.75 | BA25: 7.2 | BB25: 1.08 | BC25: 0.94 | BD25: 85.53 | BE25: 18.76 | BF25: 0.48 | BG25: 7.14
A26: 23 | B26: SCUIX | C26: Schroder US Opportunities Inv | D26: Small Growth | E26: Schroder | F26: 250000 | G26: N/A | H26: 1000 | I26: N/A | J26: 0.0133 | K26: 0.0136 | L26: 0.0136 | M26: N/A | N26: N/A | O26: N/A | P26: 431 | Q26: 745 | R26: 1635 | S26: 0.03 | T26: 2.3 | U26: 0.57 | V26: 1.1074 | W26: 4 | X26: 0.2252 | Y26: 0.0841 | Z26: 0.0659 | AA26: 0.1054 | AB26: 0.0654 | AC26: 0.0216 | AD26: 0.0654 | AE26: 0.2252 | AF26: 0.0841 | AG26: 0.0659 | AH26: 88 | AI26: 87 | AJ26: 52 | AK26: 12 | AL26: 1 | AM26: 6.04 | AN26: 1.01 | AO26: 0.9 | AP26: 90.57 | AQ26: 23.19 | AR26: 0.45 | AS26: 7.92 | AT26: 4.02 | AU26: 1.01 | AV26: 0.69 | AW26: 88.59 | AX26: 19.09 | AY26: 0.32 | AZ26: 4.48 | BA26: 7.09 | BB26: 0.98 | BC26: 0.96 | BD26: 81.72 | BE26: 17.25 | BF26: 0.55 | BG26: 8.61
A27: 24 | B27: VSEAX | C27: JPMorgan Small Cap Equity A | D27: Small Growth | E27: JPMorgan | F27: 1000 | G27: N/A | H27: 25 | I27: N/A | J27: 0.0129 | K27: 0.0131 | L27: 0.0139 | M27: 0.0025 | N27: 0.0525 | O27: N/A | P27: 934 | Q27: 1238 | R27: 2099 | S27: 0.04 | T27: 1.76 | U27: 0.44 | V27: 1.1074 | W27: 5 | X27: 0.2365 | Y27: 0.0926 | Z27: 0.0653 | AA27: 0.094 | AB27: 0.0459 | AC27: 0.0412 | AD27: 0.1211 | AE27: 0.3051 | AF27: 0.1125 | AG27: 0.0768 | AH27: 73 | AI27: 78 | AJ27: 13 | AK27: 7 | AL27: 1 | AM27: 8.82 | AN27: 0.98 | AO27: 1.11 | AP27: 88.73 | AQ27: 22.7 | AR27: 0.56 | AS27: 11.04 | AT27: 4.82 | AU27: 0.98 | AV27: 0.77 | AW27: 86.05 | AX27: 18.93 | AY27: 0.37 | AZ27: 5.61 | BA27: 7.25 | BB27: 0.93 | BC27: 0.92 | BD27: 77.75 | BE27: 17.07 | BF27: 0.52 | BG27: 8.36
A28: 25 | B28: JASCX | C28: James Small Cap | D28: Small Value | E28: James Advantage | F28: 2000 | G28: 500 | H28: 0 | I28: 0 | J28: 0.015 | K28: 0.015 | L28: 0.015 | M28: 0.0025 | N28: N/A | O28: N/A | P28: 474 | Q28: 818 | R28: 1788 | S28: 0 | T28: 0 | U28: 0.38 | V28: 0.7194 | W28: 2 | X28: 0.34 | Y28: 0.0392 | Z28: 0.005 | AA28: 0.0933 | AB28: 0.0626 | AC28: 0.0512 | AD28: 0.1156 | AE28: 0.34 | AF28: 0.0392 | AG28: 0.005 | AH28: 20 | AI28: 16 | AJ28: 91 | AK28: 87 | AL28: 1 | AM28: 1.93 | AN28: 0.89 | AO28: 0.5 | AP28: 86.24 | AQ28: 20.97 | AR28: 0.27 | AS28: 3.89 | AT28: -2.15 | AU28: 0.9 | AV28: 0.17 | AW28: 82.83 | AX28: 17.71 | AY28: 0 | AZ28: -1.83 | BA28: 6.77 | BB28: 0.87 | BC28: 0.87 | BD28: 65.82 | BE28: 17.24 | BF28: 0.48 | BG28: 8.22
A29: 26 | B29: DHSCX | C29: Diamond Hill Small Cap A | D29: Small Value | E29: Diamond Hill Funds | F29: 5000 | G29: 5000 | H29: 100 | I29: N/A | J29: 0.0137 | K29: 0.0135 | L29: 0.0135 | M29: 0.0025 | N29: 0.05 | O29: N/A | P29: 906 | Q29: 1202 | R29: 2043 | S29: 0.12 | T29: 0.03 | U29: 0.35 | V29: 0.7194 | W29: 2 | X29: 0.1833 | Y29: 0.0531 | Z29: 0.0255 | AA29: 0.1012 | AB29: 0.0194 | AC29: 0.0257 | AD29: 0.0816 | AE29: 0.2455 | AF29: 0.0713 | AG29: 0.0361 | AH29: 95 | AI29: 86 | AJ29: 61 | AK29: 52 | AL29: 1 | AM29: 5.03 | AN29: 1.02 | AO29: 0.81 | AP29: 88.65 | AQ29: 23.74 | AR29: 0.39 | AS29: 6.54 | AT29: 0.99 | AU29: 1 | AV29: 0.45 | AW29: 83.81 | AX29: 19.52 | AY29: 0.17 | AZ29: 1.45 | BA29: 8.09 | BB29: 1.02 | BC29: 1 | BD29: 74.31 | BE29: 19.1 | BF29: 0.52 | BG29: 8.32
A30: 27 | B30: CGMRX | C30: CGM Realty | D30: Real Estate | E30: CGM | F30: 2500 | G30: 1000 | H30: 50 | I30: 50 | J30: 0.0089 | K30: 0.0093 | L30: 0.0093 | M30: N/A | N30: N/A | O30: N/A | P30: 296 | Q30: 515 | R30: 1143 | S30: 0.05 | T30: 0 | U30: 1.33 | V30: 1.1893 | W30: 4 | X30: 0.3783 | Y30: 0.0081 | Z30: 0.095 | AA30: 0.2029 | AB30: 0.0635 | AC30: 0.0417 | AD30: 0.1412 | AE30: 0.3783 | AF30: 0.0081 | AG30: 0.095 | AH30: 86 | AI30: 49 | AJ30: 85 | AK30: 1 | AL30: 5 | AM30: 2.4 | AN30: 1.55 | AO30: 0.77 | AP30: 71.58 | AQ30: 40.24 | AR30: 0.22 | AS30: 0.22 | AT30: 9.14 | AU30: 1.53 | AV30: 1.24 | AW30: 68.84 | AX30: 33.03 | AY30: 0.38 | AZ30: 4.79 | BA30: 18.29 | BB30: 1.18 | BC30: 1.88 | BD30: 48.54 | BE30: 27.44 | BF30: 0.74 | BG30: 15.29
A31: 28 | B31: EUEYX | C31: Alpine Cyclical Advantage Property Y | D31: Real Estate | E31: Alpine | F31: 1000 | G31: N/A | H31: N/A | I31: N/A | J31: 0.013 | K31: 0.013 | L31: 0.0132 | M31: N/A | N31: N/A | O31: N/A | P31: 418 | Q31: 723 | R31: 1590 | S31: 0.24 | T31: 3.11 | U31: 0.9 | V31: 1.1893 | W31: 1 | X31: 0.1674 | Y31: -0.0692 | Z31: -0.0978 | AA31: 0.0691 | AB31: -0.0107 | AC31: 0.0128 | AD31: 0.062 | AE31: 0.1674 | AF31: -0.0692 | AG31: -0.0978 | AH31: 100 | AI31: 100 | AJ31: 99 | AK31: 99 | AL31: 4 | AM31: -5.09 | AN31: 1.76 | AO31: 0.22 | AP31: 75.48 | AQ31: 44.3 | AR31: 0.05 | AS31: -4.2 | AT31: -9.92 | AU31: 1.7 | AV31: -0.32 | AW31: 71.93 | AX31: 35.75 | AY31: -0.17 | AZ31: -7.03 | BA31: 6.64 | BB31: 1.38 | BC31: 0.93 | BD31: 55.01 | BE31: 29.87 | BF31: 0.3 | BG31: 3.44
A32: 29 | B32: PURAX | C32: Prudential Global Real Estate A | D32: Global Real Estate | E32: Prudential Investments | F32: 2500 | G32: 1000 | H32: 100 | I32: 100 | J32: 0.0137 | K32: 0.0137 | L32: 0.0137 | M32: 0.003 | N32: 0.055 | O32: N/A | P32: 960 | Q32: 1259 | R32: 2106 | S32: 0.03 | T32: 0 | U32: 0.53 | V32: 0.9926 | W32: 4 | X32: 0.2175 | Y32: -0.0101 | Z32: 0.0119 | AA32: 0.125 | AB32: 0.0463 | AC32: 0.03 | AD32: 0.1115 | AE32: 0.2883 | AF32: 0.0087 | AG32: 0.0234 | AH32: 16 | AI32: 15 | AJ32: 6 | AK32: 17 | AL32: 3 | AM32: 5.18 | AN32: 1.13 | AO32: 0.5 | AP32: 86.82 | AQ32: 31.86 | AR32: 0.17 | AS32: 0.36 | AT32: 0.92 | AU32: 1.08 | AV32: 0.49 | AW32: 76.5 | AX32: 26.34 | AY32: 0.14 | AZ32: 0.17 | BA32: 8.79 | BB32: 0.86 | BC32: 1.23 | BD32: 56.38 | BE32: 21.18 | BF32: 0.59 | BG32: 12.73
A33: 30 | B33: CWGIX | C33: American Funds Capital World G/I A | D33: World Stock | E33: American Funds | F33: 250 | G33: 250 | H33: 50 | I33: 50 | J33: 0.0079 | K33: 0.0079 | L33: 0.0079 | M33: 0.0024 | N33: 0.0575 | O33: N/A | P33: 813 | Q33: 989 | R33: 1497 | S33: 0.15 | T33: 0 | U33: 0.25 | V33: 0.8376 | W33: 3 | X33: 0.0504 | Y33: -0.0243 | Z33: 0.0305 | AA33: 0.0797 | AB33: 0.0363 | AC33: 0.0026 | AD33: 0.0363 | AE33: 0.1145 | AF33: -0.0048 | AG33: 0.0428 | AH33: 64 | AI33: 75 | AJ33: 62 | AK33: 26 | AL33: 3 | AM33: 1.95 | AN33: 0.89 | AO33: 0.2 | AP33: 96.94 | AQ33: 23.73 | AR33: 0.08 | AS33: -1.02 | AT33: 2.66 | AU33: 0.89 | AV33: 0.51 | AW33: 96.02 | AX33: 19.48 | AY33: 0.21 | AZ33: 2.47 | BA33: 3.33 | BB33: 0.87 | BC33: 0.8 | BD33: 94.21 | BE33: 16.41 | BF33: 0.46 | BG33: 7.47
A34: 31 | B34: MDGCX | C34: BlackRock Global SmallCap Inv A | D34: World Stock | E34: BlackRock | F34: 1000 | G34: 100 | H34: 50 | I34: 50 | J34: 0.0142 | K34: 0.0143 | L34: 0.0143 | M34: 0.0025 | N34: 0.0525 | O34: N/A | P34: 954 | Q34: 1266 | R34: 2148 | S34: 0.01 | T34: 1.76 | U34: 0.73 | V34: 0.8376 | W34: 4 | X34: 0.1848 | Y34: 0.0144 | Z34: 0.048 | AA34: 0.0717 | AB34: 0.0336 | AC34: 0.0313 | AD34: 0.1231 | AE34: 0.2504 | AF34: 0.0328 | AG34: 0.0593 | AH34: 67 | AI34: 20 | AJ34: 17 | AK34: 12 | AL34: 4 | AM34: 5.38 | AN34: 0.87 | AO34: 0.51 | AP34: 90.38 | AQ34: 24.04 | AR34: 0.24 | AS34: 3.22 | AT34: 3.43 | AU34: 0.89 | AV34: 0.66 | AW34: 87.44 | AX34: 20.4 | AY34: 0.28 | AZ34: 4.24 | BA34: 3.08 | BB34: 0.92 | BC34: 0.77 | BD34: 82.55 | BE34: 18.78 | BF34: 0.38 | BG34: 6.04
A35: 32 | B35: OPGIX | C35: Oppenheimer Global Opportunities A | D35: World Stock | E35: OppenheimerFunds | F35: 1000 | G35: 500 | H35: 50 | I35: 25 | W35: 4 | X35: 0.1179 | Y35: 0.0646 | Z35: 0.0304 | AA35: 0.074 | AB35: 0.0309 | AC35: 0.0436 | AD35: 0.0997 | AE35: 0.1861 | AF35: 0.0858 | AG35: 0.0427 | AH35: 72 | AI35: 70 | AJ35: 4 | AK35: 31 | AL35: 4 | AM35: 11.56 | AN35: 1 | AO35: 1.03 | AP35: 81.47 | AQ35: 28.9 | AR35: 0.41 | AS35: 8.14 | AT35: 2.32 | AU35: 0.97 | AV35: 0.58 | AW35: 76.48 | AX35: 23.76 | AY35: 0.2 | AZ35: 2.17 | BA35: 3.59 | BB35: 1.12 | BC35: 0.89 | BD35: 73.64 | BE35: 24.18 | BF35: 0.35 | BG35: 5.22
A36: 33 | B36: ETGIX | C36: Eaton Vance Greater India A | D36: Pacific/Asia ex-Japan Stk | E36: Eaton Vance | F36: 1000 | G36: 1000 | H36: 0 | I36: 0 | J36: 0.0197 | K36: 0.0213 | L36: 0.0228 | M36: 0.005 | N36: 0.0575 | O36: N/A | P36: 1233 | Q36: 1712 | R36: 3029 | S36: 0.04 | T36: 0 | U36: 0.59 | V36: 0.5823 | W36: 3 | X36: 0.0319 | Y36: -0.0003 | Z36: 0.0395 | AA36: 0.1744 | AB36: -0.0628 | AC36: 0.0966 | AD36: -0.0628 | AE36: 0.0948 | AF36: 0.0197 | AG36: 0.0519 | AH36: 88 | AI36: 78 | AJ36: 65 | AK36: 76 | AL36: 5 | AM36: 9.84 | AN36: 1.27 | AO36: 0.85 | AP36: 65.24 | AQ36: 41.36 | AR36: 0.24 | AS36: 1.21 | AT36: 7.38 | AU36: 1.33 | AV36: 0.96 | AW36: 61.58 | AX36: 36.23 | AY36: 0.26 | AZ36: 2.34 | BA36: 13.52 | BB36: 1.22 | BC36: 1.8 | BD36: 52.31 | BE36: 30.89 | BF36: 0.63 | BG36: 13.15
A37: 34 | B37: MALTX | C37: BlackRock Latin America Instl | D37: Latin America Stock | E37: BlackRock | F37: 2000000 | G37: 2000000 | H37: N/A | I37: N/A | J37: 0.0125 | K37: 0.0125 | L37: 0.0125 | M37: N/A | N37: N/A | O37: N/A | P37: 397 | Q37: 686 | R37: 1511 | S37: 0.97 | T37: 11.47 | U37: 0.64 | V37: 0.6884 | W37: 5 | X37: 0.2004 | Y37: 0.0344 | Z37: 0.1537 | AA37: 0.2089 | AB37: -0.0536 | AC37: 0.007 | AD37: -0.0065 | AE37: 0.2004 | AF37: 0.0344 | AG37: 0.1537 | AH37: 75 | AI37: 14 | AJ37: 1 | AK37: 1 | AL37: 4 | AM37: 10.36 | AN37: 1.33 | AO37: 0.94 | AP37: 80.89 | AQ37: 38.81 | AR37: 0.28 | AS37: 2.23 | AT37: 14.46 | AU37: 1.36 | AV37: 1.68 | AW37: 77.12 | AX37: 33.1 | AY37: 0.54 | AZ37: 9.75 | BA37: 15.56 | BB37: 1.37 | BC37: 1.98 | BD37: 72.62 | BE37: 29.75 | BF37: 0.72 | BG37: 13.65
A38: 35 | B38: UMBWX | C38: Scout International | D38: Foreign Large Growth | E38: Scout | F38: 1000 | G38: 100 | H38: 100 | I38: 100 | J38: 0.0097 | K38: 0.0097 | L38: 0.0097 | M38: N/A | N38: N/A | O38: N/A | P38: 309 | Q38: 536 | R38: 1190 | S38: 0 | T38: 0 | U38: 0.12 | V38: 0.8634 | W38: 4 | X38: 0.2077 | Y38: 0.0112 | Z38: 0.0601 | AA38: 0.0755 | AB38: 0.0364 | AC38: 0.0207 | AD38: 0.1121 | AE38: 0.2077 | AF38: 0.0112 | AG38: 0.0601 | AH38: 28 | AI38: 71 | AJ38: 19 | AK38: 8 | AL38: 2 | AM38: 3.43 | AN38: 0.92 | AO38: 0.35 | AP38: 95.68 | AQ38: 24.72 | AR38: 0.15 | AS38: 0.71 | AT38: 3.39 | AU38: 0.92 | AV38: 0.66 | AW38: 95.44 | AX38: 20.16 | AY38: 0.29 | AZ38: 4.2 | BA38: 2.69 | BB38: 0.9 | BC38: 0.73 | BD38: 94.77 | BE38: 17.19 | BF38: 0.39 | BG38: 5.94
A39: 36 | B39: AMSFX | C39: Forward Mortgage Securities Instl | D39: Intermediate Government | E39: Forward Funds | F39: 100000 | G39: N/A | H39: 100 | I39: N/A | J39: 0.0099 | K39: 0.0085 | L39: 0.0112 | M39: N/A | N39: N/A | O39: N/A | P39: 329 | Q39: 591 | R39: 1338 | S39: 0.06 | T39: 0 | U39: 7.49 | V39: 2.8758 | W39: 4 | X39: 0.0642 | Y39: 0.0569 | Z39: 0.0598 | AA39: 0.0518 | AB39: 0.0035 | AC39: 0.0028 | AD39: -0.003 | AE39: 0.0642 | AF39: 0.0569 | AG39: 0.0598 | AH39: 33 | AI39: 6 | AJ39: 20 | AK39: 17 | AL39: 2 | AM39: 2.09 | AN39: 0.62 | AO39: 0.47 | AP39: 56.05 | AQ39: 3.41 | AR39: 1.46 | AS39: 8.39 | AT39: 1.3 | AU39: 0.68 | AV39: 0.49 | AW39: 62.94 | AX39: 3.04 | AY39: 1.17 | AZ39: 5.64 | BA39: 0.72 | BB39: 0.66 | BC39: 0.42 | BD39: 72.58 | BE39: 2.88 | BF39: 1 | BG39: 4.57
A40: 37 | B40: MGIDX | C40: Managers Intermediate Duration Govt | D40: Intermediate Government | E40: Managers Funds | F40: 2000 | G40: 1000 | H40: 100 | I40: 100 | J40: 0.0089 | K40: 0.0091 | L40: 0.01 | M40: N/A | N40: N/A | O40: N/A | P40: 309 | Q40: 544 | R40: 1216 | S40: 0 | T40: 0 | U40: 4.09 | V40: 2.8758 | W40: 4 | X40: 0.0522 | Y40: 0.0665 | Z40: 0.064 | AA40: 0.0549 | AB40: 0.0061 | AC40: 0.0015 | AD40: 0.0061 | AE40: 0.0522 | AF40: 0.0665 | AG40: 0.064 | AH40: 22 | AI40: 20 | AJ40: 8 | AK40: 13 | AL40: 2 | AM40: 3.58 | AN40: 0.52 | AO40: 0.54 | AP40: 51.39 | AQ40: 2.97 | AR40: 2 | AS40: 12.07 | AT40: 1.85 | AU40: 0.61 | AV40: 0.52 | AW40: 57.57 | AX40: 2.8 | AY40: 1.44 | AZ40: 7.13 | BA40: 1.21 | BB40: 0.61 | BC40: 0.45 | BD40: 69.24 | BE40: 2.74 | BF40: 1.16 | BG40: 5.49
A41: 38 | B41: HMTGX | C41: Huntington Mortgage Securities Trust | D41: Intermediate-Term Bond | E41: Huntington | F41: 1000 | G41: N/A | H41: 500 | I41: N/A | J41: 0.0111 | K41: 0.0113 | L41: 0.0113 | M41: N/A | N41: N/A | O41: N/A | P41: 359 | Q41: 622 | R41: 1375 | S41: 0.03 | T41: 0 | U41: 0.06 | V41: 1.9527 | W41: 2 | X41: 0.0436 | Y41: 0.0383 | Z41: 0.0446 | AA41: 0.0513 | AB41: 0.0101 | AC41: -0.0004 | AD41: 0.0101 | AE41: 0.0436 | AF41: 0.0383 | AG41: 0.0446 | AH41: 44 | AI41: 86 | AJ41: 84 | AK41: 81 | AL41: 1 | AM41: 0.25 | AN41: 0.65 | AO41: 0.32 | AP41: 56.34 | AQ41: 3.63 | AR41: 0.93 | AS41: 5.22 | AT41: -0.31 | AU41: 0.69 | AV41: 0.37 | AW41: 57.3 | AX41: 3.28 | AY41: 0.71 | AZ41: 3.44 | BA41: 0.83 | BB41: 0.62 | BC41: 0.42 | BD41: 54.81 | BE41: 3.2 | BF41: 0.91 | BG41: 4.79
A42: 39 | B42: ETHYX | C42: Eaton Vance High-Yield Municipal Inc A | D42: High Yield Muni | E42: Eaton Vance | F42: 1000 | G42: 1000 | H42: 0 | I42: 0 | J42: 0.0099 | K42: 0.01 | L42: 0.0111 | M42: 0.0025 | N42: 0.0475 | O42: N/A | P42: 811 | Q42: 1058 | R42: 1762 | S42: 0.04 | T42: 0 | U42: 0.12 | V42: 0.2478 | W42: 3 | X42: -0.0608 | Y42: -0.0223 | Z42: -0.0206 | AA42: 0.0258 | AB42: -0.0079 | AC42: -0.0042 | AD42: -0.0079 | AE42: -0.014 | AF42: -0.0063 | AG42: -0.011 | AH42: 51 | AI42: 86 | AJ42: 80 | AK42: 75 | AL42: 4 | AM42: -8.26 | AN42: 2.11 | AO42: 0.07 | AP42: 46.62 | AQ42: 17.19 | AR42: 0.02 | AS42: -0.5 | AT42: -6.21 | AU42: 1.89 | AV42: -0.01 | AW42: 48.59 | AX42: 14.05 | AY42: -0.16 | AZ42: -1.68 | BA42: -2.1 | BB42: 1.39 | BC42: 0.3 | BD42: 40.6 | BE42: 10.29 | BF42: 0.14 | BG42: 0.68
A43: 40 | B43: FCAMX | C43: Franklin CA High Yield Municipal A | D43: Muni California Long | E43: Franklin Templeton Investment Funds | F43: 1000 | G43: N/A | H43: N/A | I43: N/A | J43: 0.0063 | K43: 0.0063 | L43: 0.0063 | M43: 0.001 | N43: 0.0425 | O43: N/A | P43: 618 | Q43: 761 | R43: 1178 | S43: 0.04 | T43: 0 | U43: 0.1384 | V43: 0.2278 | W43: 4 | X43: -0.0421 | Y43: 0.0145 | Z43: 0.0104 | AA43: 0.035 | AB43: -0.0175 | AC43: -0.0118 | AD43: -0.0175 | AE43: 0.0004 | AF43: 0.0293 | AG43: 0.0192 | AH43: 89 | AI43: 30 | AJ43: 30 | AK43: 65 | AL43: 5 | AM43: -3.16 | AN43: 1.52 | AO43: 0.29 | AP43: 58.65 | AQ43: 11 | AR43: 0.28 | AS43: 1.66 | AT43: -2.77 | AU43: 1.42 | AV43: 0.19 | AW43: 62.97 | AX43: 9.27 | AY43: 0.03 | AZ43: -0.11 | BA43: -1.02 | BB43: 1.19 | BC43: 0.34 | BD43: 62.99 | BE43: 7.03 | BF43: 0.28 | BG43: 1.53
A44: 41 | B44: EANAX | C44: Eaton Vance National Municipal Income A | D44: Muni National Long | E44: Eaton Vance | F44: 1000 | G44: 1000 | H44: 0 | I44: 0 | J44: 0.0067 | K44: 0.0067 | L44: 0.008 | M44: 0.0025 | N44: 0.0475 | O44: N/A | P44: 718 | Q44: 898 | R44: 1418 | S44: 0.04 | T44: 0 | U44: 0.2 | V44: 0.2954 | W44: 2 | X44: -0.0953 | Y44: -0.0118 | Z44: -0.0136 | AA44: 0.031 | AB44: -0.0152 | AC44: -0.0063 | AD44: -0.0152 | AE44: -0.0502 | AF44: 0.0043 | AG44: -0.004 | AH44: 96 | AI44: 98 | AJ44: 95 | AK44: 97 | AL44: 5 | AM44: -8.53 | AN44: 2.4 | AO44: 0.14 | AP44: 66.48 | AQ44: 16.34 | AR44: 0.08 | AS44: 0 | AT44: -6.26 | AU44: 2.23 | AV44: 0.05 | AW44: 68.92 | AX44: 13.94 | AY44: -0.11 | AZ44: -1.11 | BA44: -2.52 | BB44: 1.76 | BC44: 0.34 | BD44: 62.31 | BE44: 10.5 | BF44: 0.19 | BG44: 0.83
A45: 42 | B45: PRUAX | C45: Prudential Jennison Utility A | D45: Utilities | E45: Prudential Investments | F45: 2500 | G45: 1000 | H45: 100 | I45: 100 | J45: 0.009 | K45: 0.009 | L45: 0.009 | M45: 0.003 | N45: 0.055 | O45: N/A | P45: 821 | Q45: 1021 | R45: 1597 | S45: 0.08 | T45: 0 | U45: 0.53 | V45: 1.6557 | W45: 3 | X45: 0.1681 | Y45: -0.0608 | Z45: 0.0217 | AA45: 0.0517 | AB45: 0.0507 | AC45: 0.0355 | AD45: 0.1009 | AE45: 0.2361 | AF45: -0.0429 | AG45: 0.0333 | AH45: 15 | AI45: 5 | AJ45: 83 | AK45: 74 | AL45: 5 | AM45: -5.7 | AN45: 0.88 | AO45: -0.14 | AP45: 69.91 | AQ45: 22.94 | AR45: -0.09 | AS45: -5.42 | AT45: 1.03 | AU45: 0.88 | AV45: 0.43 | AW45: 67.85 | AX45: 19.16 | AY45: 0.16 | AZ45: 1.33 | BA45: 3.62 | BB45: 0.89 | BC45: 0.61 | BD45: 62.38 | BE45: 18.17 | BF45: 0.28 | BG45: 4.04
A46: 43 | B46: PRMTX | C46: T. Rowe Price Media & Telecommunications | D46: Communications | E46: T. Rowe Price | F46: 2500 | G46: 1000 | H46: 100 | I46: 50 | W46: 5 | X46: 0.3852 | Y46: 0.1238 | Z46: 0.1283 | AA46: 0.1177 | AB46: 0.0696 | AC46: 0.0465 | AD46: 0.1235 | AE46: 0.3852 | AF46: 0.1238 | AG46: 0.1283 | AH46: 33 | AI46: 26 | AJ46: 18 | AK46: 1 | AL46: 3 | AM46: 10.26 | AN46: 1.2 | AO46: 1.31 | AP46: 88.53 | AQ46: 28.04 | AR46: 0.54 | AS46: 9.89 | AT46: 10.04 | AU46: 1.24 | AV46: 1.25 | AW46: 85.79 | AX46: 23.95 | AY46: 0.54 | AZ46: 8.6 | BA46: 9.45 | BB46: 1.3 | BC46: 1.16 | BD46: 82.42 | BE46: 23.14 | BF46: 0.51 | BG46: 7.36
A47: 44 | B47: BERIX | C47: Berwyn Income | D47: Conservative Allocation | E47: Berwyn | F47: 3000 | G47: 1000 | H47: 250 | I47: 250 | J47: 0.0066 | K47: 0.0072 | L47: 0.0072 | M47: N/A | N47: N/A | O47: N/A | P47: 230 | Q47: 401 | R47: 894 | S47: 0 | T47: 0 | U47: 0.49 | V47: 0.6236 | W47: 5 | X47: 0.1084 | Y47: 0.101 | Z47: 0.0835 | AA47: 0.0893 | AB47: 0.0173 | AC47: 0.0135 | AD47: 0.0381 | AE47: 0.1084 | AF47: 0.101 | AG47: 0.0835 | AH47: 85 | AI47: 69 | AJ47: 1 | AK47: 1 | AL47: 2 | AM47: 6.85 | AN47: 0.57 | AO47: 0.84 | AP47: 81.96 | AQ47: 9.04 | AR47: 1.06 | AS47: 17.04 | AT47: 3.97 | AU47: 0.56 | AV47: 0.69 | AW47: 78.22 | AX47: 7.26 | AY47: 0.84 | AZ47: 11.13 | BA47: 4.42 | BB47: 0.5 | BC47: 0.73 | BD47: 64.13 | BE47: 6.22 | BF47: 1.05 | BG47: 13.58
